fUSD/lending_fUSD_20260115
["ID","MTS","AMOUNT","RATE_DAILY","PERIOD"]
[402026246,1768485060921,-500.0,0.00041095,30]
[402026247,1768485060931,-301.98248268,0.00041095,30]
[402026248,1768485060946,-500.0,0.00041095,30]
[402026249,1768485060956,-565.49,0.00041095,30]
[402026250,1768485060967,-500.0,0.00041095,30]
[402026251,1768485060978,-500.0,0.00041095,30]
[402026252,1768485060988,-500.0,0.00041095,30]
[402026253,1768485060998,-500.0,0.00041095,30]
[402026254,1768485061010,-500.0,0.00041095,30]
[402026255,1768485061020,-638.38,0.00041095,30]
[402026256,1768485061031,-500.0,0.00041095,30]
[402026257,1768485061041,-500.0,0.00041095,30]
[402026258,1768485061052,-1361.61,0.00041095,30]
[402026259,1768485061064,-1760.45,0.00041095,30]
[402026260,1768485061075,-1019.43,0.00041095,30]
[402026261,1768485061086,-500.0,0.00041095,30]
[402026262,1768485061096,-500.0,0.00041095,30]
[402026263,1768485061107,-2080.27,0.00041095,30]
[402026264,1768485061117,-1989.49,0.00041095,30]
[402026265,1768485061130,-630.77,0.00041095,30]
[402026266,1768485061141,-500.0,0.00041095,30]
[402026267,1768485061151,-789.84,0.00041095,30]
[402026268,1768485061161,-500.0,0.00041095,30]
[402026269,1768485061171,-500.0,0.00041095,30]
[402026270,1768485061183,-500.0,0.00041095,30]
[402026271,1768485061194,-512.4125142,0.00041095,30]
[402026272,1768485061204,-505.78,0.00041095,30]
[402026273,1768485061214,-500.0,0.00041095,30]
[402026274,1768485061224,-1349.99,0.00041095,30]
[402026275,1768485061235,-882.43,0.00041095,30]
[402026276,1768485061245,-500.0,0.00041095,30]
[402026277,1768485061255,-500.0,0.00041095,30]
[402026278,1768485061266,-500.0,0.00041095,30]
[402026279,1768485061277,-311.4293443,0.00041095,30]
[402026280,1768485061287,-500.0,0.00041095,30]
[402026281,1768485061297,-3421.28,0.00041095,30]
[402026282,1768485061310,-500.0,0.00041095,30]
[402026283,1768485061320,-743.76,0.00041095,30]
[402026284,1768485061331,-500.77846226,0.00041095,30]
[402026285,1768485061341,-798.78,0.00041095,30]
[402026286,1768485061352,-500.0,0.00041095,30]
[402026287,1768485061362,-500.0,0.00041095,30]
[402026288,1768485061374,-500.0,0.00041095,30]
[402026289,1768485061385,-500.0,0.00041095,30]
[402026290,1768485061395,-500.0,0.00041095,5]
[402026291,1768485061406,-1233.2,0.00041095,30]
[402026292,1768485061416,-1065.88,0.00041095,30]
[402026293,1768485061427,-547.05,0.00041095,30]
[402026294,1768485061442,-1075.79,0.00041095,30]
[402026295,1768485061454,-1031.71,0.00041095,30]
[402026296,1768485061465,-500.0,0.00041095,30]
[402026297,1768485061475,-1156.41,0.00041095,30]
[402026298,1768485061485,-500.0,0.00041095,30]
[402026299,1768485061499,-558.98,0.00041095,30]
[402026300,1768485061510,-500.0,0.00041095,3]
[402026301,1768485061524,-500.0,0.00041095,30]
[402026302,1768485061535,-500.0,0.00041095,30]
[402026303,1768485061545,-500.0,0.00041095,30]
[402026304,1768485061556,-521.36,0.00041095,30]
[402026305,1768485061567,-570.19,0.00041095,30]
[402026306,1768485061578,-500.0,0.00041095,30]
[402026307,1768485061589,-1497.94,0.00041095,30]
[402026308,1768485061599,-500.0,0.00041095,30]
[402026309,1768485061610,-500.0,0.00041095,30]
[402026310,1768485061621,-500.0,0.00041095,30]
[402026311,1768485061631,-500.0,0.00041095,2]
[402026312,1768485061641,-500.0,0.00041095,30]
[402026313,1768485061651,-2278.32,0.00041095,30]
[402026314,1768485061661,-1686.59,0.00041095,30]
[402026315,1768485061672,-500.0,0.00041095,30]
[402026316,1768485061682,-500.0,0.00041095,30]
[402026317,1768485061693,-1065.52,0.00041095,30]
[402026318,1768485061704,-543.97,0.00041095,30]
[402026319,1768485061714,-500.0,0.00041095,30]
[402026320,1768485061728,-631.21,0.00041095,30]
[402026321,1768485061738,-675.32,0.00041095,30]
[402026322,1768485061749,-500.0,0.00041095,30]
[402026323,1768485061761,-1082.64,0.00041095,30]
[402026324,1768485061772,-500.0,0.00041095,30]
[402026325,1768485061783,-500.0,0.00041095,30]
[402026326,1768485061794,-500.0,0.00041095,30]
[402026327,1768485061806,-500.0,0.00041095,30]
[402026328,1768485061817,-156.29623228,0.00041095,2]
[402026329,1768485061829,-500.0,0.00041095,30]
[402026330,1768485061840,-500.0,0.00041095,30]
[402026331,1768485061853,-500.0,0.00041095,30]
[402026332,1768485061865,-500.0,0.00041095,30]
[402026333,1768485061877,-500.0,0.00041095,30]
[402026334,1768485061888,-1226.97,0.00041095,30]
[402026335,1768485061899,-500.0,0.00041095,30]
[402026336,1768485061911,-500.0,0.00041095,30]
[402026337,1768485061921,-1699.43,0.00041095,30]
[402026338,1768485061932,-500.0,0.00041095,30]
[402026339,1768485061943,-653.44,0.00041095,30]
[402026340,1768485061954,-500.0,0.00041095,30]
[402026341,1768485061964,-986.19,0.00041095,30]
[402026342,1768485061975,-883.91,0.00041095,30]
[402026343,1768485061986,-505.15985819,0.00041095,30]
[402026344,1768485061997,-229.626152,0.00041095,2]
[402026345,1768485062007,-300.0,0.00041095,2]
[402026346,1768485062018,-1648.48,0.00041095,30]
[402026347,1768485062028,-500.0,0.00041095,30]
[402026348,1768485062039,-3233.81,0.00041095,30]
[402026349,1768485062050,-192.844,0.00041095,2]
[402026350,1768485062061,-500.0,0.00041095,30]
[402026351,1768485062071,-1125.93,0.00041095,30]
[402026352,1768485062082,-540.5,0.00041095,30]
[402026353,1768485062093,-500.0,0.00041095,30]
[402026354,1768485062104,-1231.05,0.00041095,2]
[402026355,1768485062115,-500.0,0.00041095,30]
[402026356,1768485062127,-500.0,0.00041095,30]
[402026357,1768485062137,-500.9035743,0.00041095,30]
[402026358,1768485062147,-500.0,0.00041095,30]
[402026359,1768485062158,-725.19,0.00041095,30]
[402026360,1768485062168,-500.0,0.00041095,30]
[402026361,1768485062179,-500.0,0.00041095,30]
[402026362,1768485062190,-1196.28,0.00041095,30]
[402026363,1768485062200,-500.0,0.00041095,30]
[402026364,1768485062212,-500.0,0.00041095,30]
[402026365,1768485062222,-537.15241545,0.00041095,30]
[402026366,1768485062233,-500.0,0.00041095,30]
[402026367,1768485062244,-500.0,0.00041095,30]
[402026368,1768485062255,-1806.13,0.00041095,30]
[402026369,1768485062266,-500.0,0.00041095,30]
[402026370,1768485062277,-860.05,0.00041095,30]
[402026371,1768485062288,-601.42,0.00041095,30]
[402026372,1768485062300,-934.36,0.00041095,30]
[402026373,1768485062312,-2655.5,0.00041095,30]
[402026374,1768485062323,-505.13390514,0.00041095,30]
[402026375,1768485062333,-545.66,0.00041095,30]
[402026376,1768485062344,-1784.86,0.00041095,30]
[402026377,1768485062616,-500.0,0.00041095,30]
[402026378,1768485062629,-500.0,0.00041095,30]
[402026379,1768485062639,-1611.31,0.00041095,30]
[402026380,1768485062650,-595.28,0.00041095,30]
[402026381,1768485062661,-619.19,0.00041095,30]
[402026382,1768485062672,-2407.6,0.00041095,30]
[402026383,1768485062683,-1222.96,0.00041095,30]
[402026384,1768485062694,-500.0,0.00041095,30]
[402026385,1768485062705,-500.0,0.00041095,30]
[402026386,1768485062716,-500.0,0.00041095,30]
[402026387,1768485062728,-500.0,0.00041095,30]
[402026388,1768485062738,-1308.0,0.00041096,120]
[402026389,1768485062748,-392.4,0.00041096,120]
[402026390,1768485062759,-235.44,0.00041096,120]
[402026391,1768485062770,-311.12106347,0.00041096,120]
[402026392,1768485062780,-748.0,0.00041096,2]
[402026393,1768485062791,-532.96,0.000411,30]
[402026394,1768485062802,-156.87,0.000411,2]
[402026395,1768485062813,-748.0,0.00041151,2]
[402026396,1768485062824,-748.0,0.00041206,2]
[402026397,1768485062835,-500.0,0.00041232,120]
[402026398,1768485062846,-500.0,0.00041232,120]
[402026399,1768485062857,-500.0,0.00041232,120]
[402026400,1768485062867,-500.0,0.00041232,120]
[402026401,1768485062878,-500.0,0.00041232,120]
[402026402,1768485062889,-500.0,0.00041232,120]
[402026403,1768485062899,-500.0,0.00041232,120]
[402026404,1768485062910,-500.0,0.00041232,120]
[402026405,1768485062920,-500.0,0.00041232,120]
[402026406,1768485062931,-500.0,0.00041232,120]
[402026407,1768485062941,-500.0,0.00041232,120]
[402026408,1768485062952,-500.0,0.00041232,120]
[402026409,1768485062962,-500.0,0.00041232,120]
[402026410,1768485062973,-500.0,0.00041232,120]
[402026411,1768485062983,-500.0,0.00041232,120]
[402026412,1768485062996,-500.0,0.00041232,120]
[402026413,1768485063007,-500.0,0.00041232,120]
[402026414,1768485063018,-500.0,0.00041232,120]
[402026415,1768485063029,-500.0,0.00041232,120]
[402026416,1768485063039,-500.0,0.00041232,120]
[402026417,1768485063049,-500.0,0.00041232,120]
[402026418,1768485063059,-627.06425174,0.00041232,120]
[402026419,1768485063070,-500.0,0.00041232,120]
[402026420,1768485063080,-500.0,0.00041232,120]
[402026421,1768485063091,-500.0,0.00041232,120]
[402026422,1768485063101,-500.0,0.00041232,120]
[402026423,1768485063111,-500.0,0.00041232,120]
[402026424,1768485063121,-500.0,0.00041232,120]
[402026425,1768485063131,-500.0,0.00041232,120]
[402026426,1768485063142,-500.0,0.00041232,120]
[402026427,1768485063152,-500.0,0.00041232,120]
[402026428,1768485063162,-500.0,0.00041232,120]
[402026429,1768485063173,-500.0,0.00041232,120]
[402026430,1768485063183,-500.0,0.00041232,120]
[402026431,1768485063193,-500.0,0.00041232,120]
[402026432,1768485063204,-627.56450446,0.00041232,120]
[402026433,1768485063214,-500.0,0.00041232,120]
[402026434,1768485063224,-151.0,0.00041232,120]
[402026435,1768485063234,-151.0,0.00041232,120]
[402026436,1768485063245,-151.0,0.00041232,120]
[402026437,1768485063255,-267.78638,0.00041232,120]
[402026438,1768485063264,-267.78638,0.00041232,120]
[402026439,1768485063274,-267.78638,0.00041232,120]
[402026440,1768485063285,-151.0,0.00041232,120]
[402026441,1768485063294,-151.0,0.00041232,30]
[402026442,1768485063304,-267.78638,0.00041232,120]
[402026443,1768485063315,-151.0,0.00041232,120]
[402026444,1768485063324,-576.7,0.00041232,120]
[402026445,1768485063335,-151.0,0.00041232,30]
[402026446,1768485063345,-151.0,0.00041232,120]
[402026447,1768485063354,-576.7,0.00041232,120]
[402026448,1768485063364,-576.7,0.00041232,120]
[402026449,1768485063374,-151.0,0.00041232,120]
[402026450,1768485063385,-576.7,0.00041232,120]
[402026451,1768485063395,-151.0,0.00041232,120]
[402026452,1768485063404,-151.0,0.00041232,120]
[402026453,1768485063415,-151.0,0.00041232,120]
[402026454,1768485063425,-247.991261,0.00041232,120]
[402026455,1768485063434,-3599.522836,0.00041232,120]
[402026456,1768485063444,-156.795321,0.00041232,120]
[402026457,1768485063454,-151.0,0.00041232,120]
[402026458,1768485063465,-3599.522836,0.00041232,120]
[402026459,1768485063475,-748.0,0.0004126,2]
[402026460,1768485063484,-156.87669301,0.00041277,2]
[402026461,1768485063495,-153.76,0.000413,14]
[402026462,1768485063509,-834.0,0.00041302,11]
[402026463,1768485063518,-500.0,0.00041304,60]
[402026464,1768485063528,-748.0,0.00041315,2]
[402026465,1768485063539,-611.05834916,0.00041324,2]
[402026466,1768485063549,-16480.5913092,0.0004134,2]
[402026467,1768485063559,-834.0,0.00041344,11]
[402026468,1768485063568,-300.0,0.00041368,30]
[402026469,1768485063579,-666.0,0.00041368,30]
[402026470,1768485063589,-300.0,0.00041368,30]
[402026471,1768485063598,-500.0,0.00041369,30]
[402026472,1768485063608,-227.716361,0.00041369,30]
[402026473,1768485063618,-269.655452,0.00041369,30]
[402026474,1768485063629,-500.0,0.00041369,30]
[402026475,1768485063639,-150.978527,0.00041369,30]
[402026476,1768485063649,-760.07,0.00041369,30]
[402026477,1768485063659,-1282.39,0.00041369,30]
[402026478,1768485063669,-1058.27,0.00041369,30]
[402026479,1768485063679,-340.79987118,0.00041369,30]
[402026480,1768485063689,-500.0,0.00041369,30]
[402026481,1768485063699,-514.19,0.00041369,30]
[402026482,1768485063709,-849.34,0.00041369,30]
[402026483,1768485063718,-500.0,0.00041369,30]
[402026484,1768485063729,-500.0,0.00041369,30]
[402026485,1768485063739,-500.0,0.00041369,30]
[402026486,1768485063749,-553.76,0.00041369,30]
[402026487,1768485063763,-980.09,0.00041369,30]
[402026488,1768485063778,-500.0,0.00041369,30]
[402026489,1768485063788,-500.0,0.00041369,30]
[402026490,1768485063799,-500.0,0.00041369,30]
[402026491,1768485063809,-500.0,0.00041369,30]
[402026492,1768485063819,-560.15,0.00041369,30]
[402026493,1768485063830,-500.0,0.00041369,30]
[402026494,1768485063840,-500.0,0.00041369,30]
[402026495,1768485063850,-406.52521866,0.00041369,30]
[402026496,1768485063860,-500.0,0.00041369,30]
[402026497,1768485063871,-179.10222922,0.00041369,30]
[402026498,1768485063881,-500.0,0.00041369,30]
[402026499,1768485063891,-1202.45,0.00041369,30]
[402026500,1768485063901,-300.0,0.00041369,120]
[402026501,1768485063911,-500.0,0.00041369,30]
[402026502,1768485063921,-500.0,0.00041369,30]
[402026503,1768485063932,-500.0,0.00041369,30]
[402026504,1768485063941,-500.0,0.00041369,30]
[402026505,1768485063952,-348.99005598,0.00041369,30]
[402026506,1768485063962,-500.0,0.00041369,30]
[402026507,1768485063972,-537.92,0.00041369,30]
[402026508,1768485063982,-500.0,0.00041369,30]
[402026509,1768485063992,-151.0,0.00041369,120]
[402026510,1768485064002,-500.0,0.00041369,7]
[402026511,1768485064013,-555.20772281,0.00041369,30]
[402026512,1768485064023,-500.0,0.00041369,30]
[402026513,1768485064034,-1497.75,0.00041369,30]
[402026514,1768485064045,-500.0,0.00041369,30]
[402026515,1768485064054,-500.0,0.00041369,30]
[402026516,1768485064068,-151.0,0.00041369,120]
[402026517,1768485064078,-500.0,0.00041369,30]
[402026518,1768485064087,-151.0,0.00041369,120]
[402026519,1768485064098,-500.0,0.00041369,30]
[402026520,1768485064108,-1476.05,0.00041369,30]
[402026521,1768485064117,-151.0,0.00041369,120]
[402026522,1768485064128,-151.0,0.00041369,120]
[402026523,1768485064138,-501.5049009,0.00041369,30]
[402026524,1768485064149,-500.0,0.00041369,30]
[402026525,1768485064166,-500.0,0.00041369,30]
[402026526,1768485064187,-714.71,0.00041369,30]
[402026527,1768485064203,-500.0,0.00041369,30]
[402026528,1768485064213,-500.0,0.00041369,30]
[402026529,1768485064223,-500.0,0.00041369,30]
[402026530,1768485064233,-500.0,0.00041369,30]
[402026531,1768485064243,-500.0,0.00041369,30]
[402026532,1768485064254,-500.0,0.00041369,30]
[402026533,1768485064264,-500.0,0.00041369,30]
[402026534,1768485064274,-1709.04,0.00041369,30]
[402026535,1768485064284,-1275.41,0.00041369,30]
[402026536,1768485064293,-1596.93,0.00041369,30]
[402026537,1768485064304,-952.79,0.00041369,30]
[402026538,1768485064313,-151.0,0.00041369,120]
[402026539,1768485064323,-500.0,0.00041369,30]
[402026540,1768485064333,-505.30185593,0.00041369,30]
[402026541,1768485064342,-500.0,0.00041369,30]
[402026542,1768485064352,-500.0,0.00041369,30]
[402026543,1768485064361,-500.0,0.00041369,30]
[402026544,1768485064372,-501.37560106,0.00041369,30]
[402026545,1768485064381,-502.99400441,0.00041369,30]
[402026546,1768485064392,-500.0,0.00041369,30]
[402026547,1768485064401,-500.0,0.00041369,30]
[402026548,1768485064413,-500.0,0.00041369,30]
[402026549,1768485064423,-563.82573641,0.00041369,30]
[402026550,1768485064433,-500.0,0.00041369,30]
[402026551,1768485064442,-1423.54,0.00041369,30]
[402026552,1768485064452,-500.0,0.00041369,30]
[402026553,1768485064462,-500.0,0.00041369,30]
[402026554,1768485064472,-500.0,0.00041369,30]
[402026555,1768485064482,-500.0,0.00041369,30]
[402026556,1768485064491,-690.13,0.00041369,30]
[402026557,1768485064504,-1024.88,0.00041369,30]
[402026558,1768485064513,-831.09,0.00041369,30]
[402026559,1768485064523,-151.0,0.00041369,120]
[402026560,1768485064532,-151.0,0.00041369,120]
[402026561,1768485064542,-500.0,0.00041369,30]
[402026562,1768485064552,-1463.06,0.00041369,30]
[402026563,1768485064562,-500.0,0.00041369,30]
[402026564,1768485064571,-151.0,0.00041369,120]
[402026565,1768485064581,-500.0,0.00041369,30]
[402026566,1768485064591,-151.0,0.00041369,120]
[402026567,1768485064601,-943.66,0.00041369,30]
[402026568,1768485064611,-678.76,0.00041369,30]
[402026569,1768485064623,-900.43,0.00041369,30]
[402026570,1768485064633,-500.0,0.00041369,30]
[402026571,1768485064642,-1266.83392531,0.00041369,30]
[402026572,1768485064651,-500.0,0.00041369,30]
[402026573,1768485064661,-1105.75,0.00041369,30]
[402026574,1768485064671,-1556.46,0.00041369,30]
[402026575,1768485064680,-500.0,0.00041369,30]
[402026576,1768485064690,-500.0,0.00041369,30]
[402026577,1768485064700,-692.91,0.00041369,30]
[402026578,1768485064710,-500.0,0.00041369,30]
[402026579,1768485064720,-574.11,0.00041369,30]
[402026580,1768485064730,-500.0,0.00041369,30]
[402026581,1768485064739,-500.0,0.00041369,30]
[402026582,1768485064748,-500.0,0.00041369,30]
[402026583,1768485064758,-804.26,0.00041369,30]
[402026584,1768485064768,-946.59,0.00041369,30]
[402026585,1768485064777,-500.0,0.00041369,30]
[402026586,1768485064787,-500.0,0.00041369,30]
[402026587,1768485064797,-500.0,0.00041369,30]
[402026588,1768485064807,-578.12,0.00041369,30]
[402026589,1768485064816,-500.0,0.00041369,30]
[402026590,1768485064826,-506.38,0.00041369,30]
[402026591,1768485064835,-526.09,0.00041369,30]
[402026592,1768485064844,-500.0,0.00041369,30]
[402026593,1768485064854,-500.0,0.00041369,30]
[402026594,1768485064863,-952.37,0.00041369,30]
[402026595,1768485064873,-701.87,0.00041369,30]
[402026596,1768485064882,-500.0,0.00041369,30]
[402026597,1768485064892,-500.0,0.00041369,30]
[402026598,1768485064901,-500.0,0.00041369,30]
[402026599,1768485064911,-500.0,0.00041369,30]
[402026600,1768485064921,-500.0,0.00041369,30]
[402026601,1768485064930,-500.0,0.00041369,30]
[402026602,1768485064940,-500.0,0.00041369,30]
[402026603,1768485064949,-151.0,0.00041369,120]
[402026604,1768485064959,-518.03,0.00041369,30]
[402026605,1768485064968,-500.0,0.00041369,30]
[402026606,1768485064978,-500.0,0.00041369,30]
[402026607,1768485064987,-500.0,0.00041369,30]
[402026608,1768485064996,-500.0,0.00041369,30]
[402026609,1768485065006,-558.33435333,0.00041369,30]
[402026610,1768485065103,-500.0,0.00041369,30]
[402026611,1768485065113,-911.51,0.00041369,30]
[402026612,1768485065122,-500.0,0.00041369,30]
[402026613,1768485065132,-500.0,0.00041369,30]
[402026614,1768485065142,-500.0,0.00041369,30]
[402026615,1768485065151,-500.0,0.00041369,30]
[402026616,1768485065160,-500.0,0.00041369,30]
[402026617,1768485065170,-538.0,0.00041369,30]
[402026618,1768485065180,-500.0,0.00041369,120]
[402026619,1768485065189,-500.0,0.00041369,30]
[402026620,1768485065199,-500.0,0.00041369,30]
[402026621,1768485065208,-1043.84,0.00041369,30]
[402026622,1768485065217,-151.0,0.00041369,120]
[402026623,1768485065226,-816.46,0.00041369,30]
[402026624,1768485065235,-359.74349105,0.00041369,30]
[402026625,1768485065247,-523.38738483,0.00041369,30]
[402026626,1768485065256,-725.02,0.00041369,30]
[402026627,1768485065266,-500.0,0.00041369,30]
[402026628,1768485065275,-500.0,0.00041369,30]
[402026629,1768485065283,-500.0,0.00041369,30]
[402026630,1768485065292,-500.0,0.00041369,30]
[402026631,1768485065302,-500.0,0.00041369,30]
[402026632,1768485065311,-772.05,0.00041369,30]
[402026633,1768485065320,-500.0,0.00041369,30]
[402026634,1768485065329,-583.96,0.00041369,30]
[402026635,1768485065338,-500.0,0.00041369,30]
[402026636,1768485065347,-715.08,0.00041369,30]
[402026637,1768485065357,-500.0,0.00041369,30]
[402026638,1768485065366,-152.633477,0.00041369,90]
[402026639,1768485065376,-500.0,0.00041369,30]
[402026640,1768485065385,-500.0,0.00041369,30]
[402026641,1768485065394,-500.0,0.00041369,30]
[402026642,1768485065404,-500.0,0.00041369,30]
[402026643,1768485065413,-500.0,0.00041369,30]
[402026644,1768485065422,-500.0,0.00041369,30]
[402026645,1768485065431,-500.0,0.00041369,30]
[402026646,1768485065440,-500.0,0.00041369,30]
[402026647,1768485065450,-500.0,0.00041369,30]
[402026648,1768485065459,-503.1,0.00041369,30]
[402026649,1768485065468,-687.6,0.00041369,30]
[402026650,1768485065477,-500.0,0.00041369,30]
[402026651,1768485065486,-500.0,0.00041369,30]
[402026652,1768485065497,-1881.89,0.00041369,30]
[402026653,1768485065508,-500.0,0.00041369,30]
[402026654,1768485065517,-500.0,0.00041369,30]
[402026655,1768485065526,-500.0,0.00041369,30]
[402026656,1768485065535,-151.0,0.00041369,120]
[402026657,1768485065545,-500.0,0.00041369,30]
[402026658,1768485065555,-500.0,0.00041369,30]
[402026659,1768485065564,-151.0,0.00041369,120]
[402026660,1768485065574,-500.0,0.00041369,30]
[402026661,1768485065583,-500.0,0.00041369,30]
[402026662,1768485065593,-505.72646552,0.00041369,30]
[402026663,1768485065602,-500.0,0.00041369,30]
[402026664,1768485065611,-500.0,0.00041369,30]
[402026665,1768485065620,-500.0,0.00041369,30]
[402026666,1768485065631,-500.0,0.00041369,30]
[402026667,1768485065640,-500.0,0.00041369,30]
[402026668,1768485065649,-500.0,0.00041369,30]
[402026669,1768485065659,-700.27,0.00041369,30]
[402026670,1768485065668,-500.0,0.00041369,30]
[402026671,1768485065677,-500.0,0.00041369,30]
[402026672,1768485065687,-500.0,0.00041369,30]
[402026673,1768485065696,-500.0,0.00041369,30]
[402026674,1768485065705,-697.03,0.00041369,30]
[402026675,1768485065715,-500.0,0.00041369,30]
[402026676,1768485065724,-505.71939828,0.00041369,30]
[402026677,1768485065733,-1079.22,0.00041369,30]
[402026678,1768485065742,-300.20292039,0.00041369,30]
[402026679,1768485065751,-500.0,0.00041369,30]
[402026680,1768485065760,-500.0,0.00041369,30]
[402026681,1768485065768,-512.55295596,0.00041369,30]
[402026682,1768485065777,-723.82,0.00041369,30]
[402026683,1768485065786,-421.92971168,0.00041369,30]
[402026684,1768485065795,-504.74,0.00041369,30]
[402026685,1768485065804,-500.0,0.00041369,30]
[402026686,1768485065813,-500.0,0.00041369,30]
[402026687,1768485065823,-500.0,0.00041369,30]
[402026688,1768485065831,-500.0,0.00041369,30]
[402026689,1768485065840,-500.0,0.00041369,30]
[402026690,1768485065849,-500.0,0.00041369,30]
[402026691,1768485065858,-500.0,0.00041369,30]
[402026692,1768485065867,-500.0,0.00041369,30]
[402026693,1768485065876,-616.43576784,0.00041369,30]
[402026694,1768485065885,-500.0,0.00041369,30]
[402026695,1768485065893,-1040.73,0.00041369,30]
[402026696,1768485065902,-500.0,0.00041369,30]
[402026697,1768485065911,-500.0,0.00041369,30]
[402026698,1768485065920,-500.0,0.00041369,30]
[402026699,1768485065929,-243.254605,0.00041369,120]
[402026700,1768485065938,-500.0,0.00041369,30]
[402026701,1768485065947,-500.0,0.00041369,30]
[402026702,1768485065955,-1238.63,0.00041369,30]
[402026703,1768485065964,-243.254605,0.00041369,120]
[402026704,1768485065973,-500.0,0.00041369,30]
[402026705,1768485065982,-1319.44,0.00041369,30]
[402026706,1768485065991,-243.254605,0.00041369,120]
[402026707,1768485066000,-243.254605,0.00041369,120]
[402026708,1768485066009,-500.0,0.00041369,30]
[402026709,1768485066017,-735.07,0.00041369,30]
[402026710,1768485066027,-500.0,0.00041369,30]
[402026711,1768485066035,-500.0,0.00041369,30]
[402026712,1768485066044,-500.0,0.00041369,30]
[402026713,1768485066053,-500.0,0.00041369,30]
[402026714,1768485066062,-500.0,0.00041369,30]
[402026715,1768485066071,-180.94443587,0.00041369,30]
[402026716,1768485066080,-500.0,0.00041369,30]
[402026717,1768485066089,-500.0,0.00041369,30]
[402026718,1768485066098,-151.0,0.00041369,120]
[402026719,1768485066107,-500.0,0.00041369,30]
[402026720,1768485066116,-500.0,0.00041369,30]
[402026721,1768485066126,-954.82,0.00041369,30]
[402026722,1768485066136,-500.0,0.00041369,30]
[402026723,1768485066145,-500.0,0.00041369,30]
[402026724,1768485066155,-500.0,0.00041369,30]
[402026725,1768485066165,-500.0,0.00041369,30]
[402026726,1768485066174,-631.81,0.00041369,30]
[402026727,1768485066184,-500.0,0.00041369,30]
[402026728,1768485066192,-500.0,0.00041369,30]
[402026729,1768485066201,-1719.96,0.00041369,30]
[402026730,1768485066210,-1276.18,0.00041369,30]
[402026731,1768485066219,-2296.69,0.00041369,30]
[402026732,1768485066229,-500.0,0.00041369,30]
[402026733,1768485066238,-1198.89,0.00041369,30]
[402026734,1768485066248,-500.0,0.00041369,30]
[402026735,1768485066258,-500.0,0.00041369,30]
[402026736,1768485066267,-500.0,0.00041369,30]
[402026737,1768485066277,-500.0,0.00041369,30]
[402026738,1768485066286,-500.0,0.00041369,30]
[402026739,1768485066296,-500.0,0.00041369,30]
[402026740,1768485066305,-528.52,0.00041369,30]
[402026741,1768485066315,-227.27191538,0.00041369,30]
[402026742,1768485066325,-1450.97,0.00041369,30]
[402026743,1768485066334,-151.0,0.00041369,120]
[402026744,1768485066343,-1566.49,0.00041369,30]
[402026745,1768485066352,-500.0,0.00041369,30]